[Event "Romanian Rapid Open 2022"]
[Site "Sebes"]
[Date "2022.12.02"]
[Round "4.38"]
[White "Mihaila, Cezar-Stefan"]
[Black "Jiros, Doru"]
[Result "1/2-1/2"]
[ECO "B01"]
[WhiteElo "1035"]
[BlackElo "1936"]
[Annotator "TA"]
[PlyCount "63"]
[EventDate "2022.12.02"]
[EventType "rapid"]
[EventCountry "ROU"]
[SourceTitle "playchess.com"]
[Source "ChessBase"]
[SourceQuality "1"]
[TimeControl "600+5"]

{[%evp 9,63,39,57,37,41,33,45,20,19,0,26,6,11,-12,21,12,11,-39,-30,-45,-50,-79,-71,-75,-72,-116,-93,-143,-139,-143,-146,-160,-147,-586,-153,-174,-143,-159,-109,-192,-158,-191,-190,-193,-183,-193,-179,-160,-128,-129,-129,-131,-88,-120,-89,-116]} 1. e4 {[%emt 0:10:10]} d5 {[%emt 0:00:20]} 2. exd5 {[%emt 0:00:00]} Qxd5 {[%emt 0:00:01]} 3. Nc3 {[%emt 0:00:00]} Qd6 {[%emt 0:00:01]} 4. Nf3 {[%emt 0:00:00]} c6 {[%emt 0:00:02]} 5. d4 {[%emt 0:00:00]} Bg4 {[%emt 0:00:02]} 6. Be2 {[%emt 0:00:00] B01: Scandinavian Defence.} Nf6 {[%emt 0:00:06] Against Ne4} 7. O-O {[%emt 0:00:00]} (7. Bg5 {is more complex.} e6 8. Ne5 Bxe2 9. Qxe2 Qxd4 10. Rd1) 7... e6 {[%emt 0:00:01]} 8. Bg5 {[%emt 0:00:00] White is slightly better.} Nbd7 {[%emt 0:00:14]} 9. h3 {[%emt 0:00:00]} Bh5 {[%emt 0:00:05] [#]} (9... h6 $5 {[%cal Rg4f3]} 10. Bxf6 Bxf3 11. Bxf3 Nxf6 $11) 10. Qd3 $146 {[%emt 0:00:00]} ({Predecessor:} 10. Bh4 Bxf3 11. Bxf3 Qc7 12. Re1 Be7 13. Bg3 Bd6 14. Bxd6 Qxd6 15. d5 cxd5 16. Nxd5 {½-½ (32) Movsesian,S (2688)-Tiviakov,S (2655) Wijk aan Zee 2013}) 10... Bg6 {[%emt 0:00:12]} 11. Qe3 {[%emt 0:00:00]} Be7 {[%emt 0:00:03]} 12. Bd3 {[%emt 0:00:00]} (12. Bf4 $5 {[%cal Rf4d6]} Qb4 13. Rfc1 $14) 12... Bxd3 {[%emt 0:00:22]} 13. cxd3 {[%emt 0:00:00]} (13. Qxd3 $11 Qc7 14. g3) 13... O-O {[%emt 0:00:10]} 14. Ne4 {[%emt 0:00:00]} Qb4 {[%emt 0:00:55]} 15. Nxf6+ {[%emt 0:00:00]} Bxf6 {[%emt 0:00:42]} 16. Bxf6 {[%emt 0:00:00]} Nxf6 {[%emt 0:00:02]} 17. Ne5 {[%emt 0:00:00]} Rad8 {[%emt 0:00:43]} ({Inferior is} 17... Qxb2 18. Rab1 Qxa2 19. Rxb7 $15) 18. Nc4 {[%emt 0:00:00]} ({White should play} 18. Nf3) 18... Rd5 $17 {[%emt 0:00:39]} 19. a3 {[%emt 0:00:00]} Qe7 {[%emt 0:00:13]} 20. Rac1 {[%emt 0:00:00]} Rfd8 {[%emt 0:00:06]} 21. Na5 $2 {[%emt 0:00:00][%mdl 8192] [#]} (21. Ne5 $17) 21... Rxd4 $2 {[%emt 0:00:06]} (21... Rxa5 $19 {is more deadly.} 22. Rc4 Rb5) 22. Rfd1 {[%emt 0:00:00]} h6 {[%emt 0:00:40]} 23. Nb3 {[%emt 0:00:00]} R4d5 {[%emt 0:00:26]} ({Better is} 23... Rh4 24. Qc5 Qxc5 25. Rxc5 g6) 24. Rc5 {[%emt 0:00:00]} (24. Qxa7 $17 {was worth a try.} Nh5 25. Qe3 (25. Nc5 $2 Nf4 $19)) 24... Rxc5 {[%emt 0:00:22]} 25. Nxc5 {[%emt 0:00:00]} b6 {[%emt 0:00:18]} 26. Ne4 {[%emt 0:00:00]} Nxe4 {[%emt 0:00:09]} 27. Qxe4 $19 {[%emt 0:00:00] KQR-KQR} Qd6 {[%emt 0:00:12]} 28. Rc1 {[%emt 0:00:00]} Qxd3 {[%emt 0:00:21]} 29. Qxc6 {[%emt 0:00:00]} Qd2 {[%emt 0:00:17]} 30. Qc7 {[%emt 0:00:00]} Qd7 {[%emt 0:00:06]} 31. Qc4 {[%emt 0:02:30]} Qd5 {[%emt 0:00:08]} 32. Qc7 {[%emt 0:00:00] Weighted Error Value: White=0.44/Black=0.31} 1/2-1/2

[Event "Romanian Rapid Open 2022"]
[Site "Sebes"]
[Date "2022.12.02"]
[Round "4.39"]
[White "Nastore, Pavel-Alexandru"]
[Black "Draga, Laurentiu"]
[Result "1-0"]
[ECO "D02"]
[WhiteElo "2218"]
[BlackElo "1404"]
[Annotator "TA"]
[PlyCount "123"]
[EventDate "2022.12.02"]
[EventType "rapid"]
[EventCountry "ROU"]
[SourceTitle "playchess.com"]
[Source "ChessBase"]
[SourceQuality "1"]
[TimeControl "600+5"]

{[%evp 9,122,18,33,31,53,25,37,41,51,47,51,37,51,58,58,58,59,53,73,69,69,55,75,54,66,68,62,64,141,53,77,73,79,92,77,38,47,39,54,47,65,60,84,85,106,106,106,106,128,128,256,129,125,88,129,90,152,148,174,144,228,228,228,185,199,190,537,500,596,585,949,909,1052,924,2632,2489,2489,2456,2434,2310,4445,3558,3093,3102,2671,2492,4778,4686,29989,29990,29991,29992,29993,29993,29993,29994,29994,29994,29994,29995,29995,29996,29996,29997,29997,29997,29998,29996,29996,29997,29997,29998,29998,29999,29999]} 1. d4 {[%emt 0:00:02]} d5 {[%emt 0:00:01]} 2. Nf3 {[%emt 0:00:01]} Nf6 {[%emt 0:00:02]} 3. g3 {[%emt 0:00:01]} e6 {[%emt 0:00:01]} 4. Bg2 {[%emt 0:00:01]} c6 {[%emt 0:00:01]} 5. O-O {[%emt 0:00:02]} h6 {[%emt 0:00:02]} 6. c4 {[%emt 0:00:01] D02: 1 d4 d5 2 Nf3 sidelines, including 2...Nf6 3 g3 and 2...Nf6 3 Bf4.} b6 {[%emt 0:00:03]} 7. Qc2 {[%emt 0:00:07] [#]} Ba6 $146 {[%emt 0:00:06]} ({Predecessor:} 7... Bd6 8. Nbd2 Nbd7 9. a3 Bb7 10. b4 c5 11. dxc5 bxc5 12. bxc5 Bxc5 13. Bb2 O-O {1-0 (54) Mrzic,B (2036)-Meszaros,F (1905) Senta 2008}) 8. b3 {[%emt 0:00:03] White is slightly better.} Bd6 {[%emt 0:00:09]} 9. Bb2 {[%emt 0:00:02]} Nbd7 {[%emt 0:00:04]} 10. Nbd2 {[%emt 0:00:03]} Rc8 {[%emt 0:00:01]} 11. e4 {[%emt 0:00:13]} dxe4 {[%emt 0:00:25]} 12. Nxe4 {[%emt 0:00:01]} Nxe4 {[%emt 0:00:02]} 13. Qxe4 {[%emt 0:00:02]} Nf6 {[%emt 0:00:14]} 14. Qe3 {[%emt 0:00:02]} O-O {[%emt 0:00:14]} 15. Rfd1 {[%emt 0:00:07]} Be7 {[%emt 0:00:07]} 16. Rac1 {[%emt 0:00:17]} Re8 {[%emt 0:00:24]} 17. Ne5 {[%emt 0:00:03] aiming for b4.} Bb7 $1 {[%emt 0:00:06]} 18. Qe2 {[%emt 0:00:18]} Qc7 {[%emt 0:02:03]} (18... Rc7 $14) 19. c5 {[%emt 0:00:31]} (19. d5 $1 $16 {[%cal Rd5c6]} exd5 20. cxd5) 19... b5 {[%emt 0:00:21]} 20. Re1 {[%emt 0:00:24] White has more active pieces.} Nd5 {[%emt 0:01:23]} 21. Rcd1 {[%emt 0:00:58]} (21. Nxf7 Kxf7 22. Qxe6+ Kf8 $11) 21... b4 {[%emt 0:00:56]} 22. Qd2 {[%emt 0:00:22]} (22. Nxf7 Kxf7 23. a3 (23. Qxe6+ Kf8 $17) 23... bxa3 24. Qxe6+ Kf8 25. Bxa3 (25. Bxd5 $2 cxd5 26. Bxa3 Bc6 $19) 25... Bf6 26. Qd6+ Kf7 27. Rxe8 Qxd6 28. cxd6 Rxe8 $17) 22... a5 {[%emt 0:00:15]} 23. a3 {[%emt 0:00:03]} bxa3 {[%emt 0:00:26]} 24. Bxa3 {[%emt 0:00:02][%cal Bb2a3,Ba3b4,Bb4d2][%mdl 32]} Ra8 {[%emt 0:00:15]} 25. Nc4 {[%emt 0:01:09]} a4 {[%emt 0:00:37] [#]} 26. Bxd5 $1 {[%emt 0:00:09]} cxd5 {[%emt 0:00:25]} 27. Nb6 {[%emt 0:00:02]} Ra7 {[%emt 0:00:02]} 28. bxa4 {[%emt 0:00:10]} ({Much less strong is} 28. Nxa4 Bc6 $14) 28... Ba6 {[%emt 0:00:54]} 29. Bb4 {[%emt 0:00:09]} Bf6 {[%emt 0:00:53]} (29... Bg5 $16 30. f4 Bd8) 30. a5 {[%emt 0:00:11]} (30. Nxd5 $18 Qd8 31. Nxf6+ Qxf6 32. d5) 30... Bb7 $16 {[%emt 0:00:23]} 31. Rc1 {[%emt 0:00:33][%cal Oc5c6]} Bc6 {[%emt 0:00:05]} 32. Qd3 {[%emt 0:00:21]} Rb8 {[%emt 0:00:06]} (32... e5 $142) 33. Bd2 {[%emt 0:00:25] And now Bf4 would win.} Qd8 {[%emt 0:00:18]} 34. Ra1 {[%emt 0:00:16] Threatens to win with Bf4.} Bg5 {[%emt 0:00:06]} (34... g5 $16 {is a better defense.} 35. a6 Qf8) 35. Bxg5 $18 {[%emt 0:01:19]} Qxg5 {[%emt 0:00:02]} 36. Qe3 {[%emt 0:00:01]} Qg6 {[%emt 0:00:18]} 37. Qe5 {[%emt 0:00:05]} Rf8 {[%emt 0:00:14]} (37... Rd8 38. Qe2 Re8) 38. Qd6 {[%emt 0:00:25]} Bb5 {[%emt 0:00:10]} 39. c6 {[%emt 0:00:05]} Qc2 {[%emt 0:00:39] Against c7} 40. Rec1 {[%emt 0:01:52]} Qe4 {[%emt 0:00:13]} 41. c7 {[%emt 0:00:02]} Be2 {[%emt 0:00:10] [#]} 42. Qxf8+ $3 {[%emt 0:00:08][%mdl 512]} Kxf8 {[%emt 0:00:06]} 43. c8=Q+ {[%emt 0:00:03]} (43. c8=B $2 {loses.} Bf3 44. Re1 {[#]} Rxa5 $3 {[%mdl 512]} 45. Nd7+ Kg8 $19) 43... Ke7 {[%emt 0:00:01]} 44. Rc7+ {[%emt 0:00:06]} Rxc7 {[%emt 0:00:02]} 45. Qxc7+ {[%emt 0:00:02]} Kf6 {[%emt 0:00:01]} 46. Qf4+ {[%emt 0:00:03]} Qxf4 {[%emt 0:00:03]} 47. gxf4 {[%emt 0:00:01] Hoping for a6.} Kf5 {[%emt 0:00:02]} 48. a6 {[%emt 0:00:03]} g5 {[%emt 0:00:01]} 49. a7 {[%emt 0:00:02] White mates.} Kxf4 {[%emt 0:00:03]} 50. a8=Q {[%emt 0:00:03]} f5 {[%emt 0:00:02]} 51. Qb8+ {[%emt 0:00:02]} Kg4 {[%emt 0:00:01]} 52. Ra3 {[%emt 0:00:06]} f4 {[%emt 0:00:03]} 53. h3+ {[%emt 0:00:05]} Kf5 {[%emt 0:00:06]} 54. Qe5+ {[%emt 0:00:03]} Kg6 {[%emt 0:00:02]} 55. Qxe6+ {[%emt 0:00:02]} Kh5 {[%emt 0:00:02]} 56. Qxe2+ {[%emt 0:00:01]} Kg6 {[%emt 0:00:03]} 57. Nxd5 {[%emt 0:00:03]} Kf5 {[%emt 0:00:06]} 58. Ne7+ {[%emt 0:00:04]} Kf6 {[%emt 0:00:02]} 59. Ra6+ {[%emt 0:00:02]} Kf7 {[%emt 0:00:04]} 60. Qe6+ {[%emt 0:00:01]} Kf8 {[%emt 0:00:03]} 61. Ra8+ {[%emt 0:00:03]} Kg7 {[%emt 0:00:01]} 62. Qg6# {[%emt 0:00:02] Weighted Error Value: White=0.15 (very precise) /Black=0.55} 1-0

[Event "Romanian Rapid Open 2022"]
[Site "Sebes"]
[Date "2022.12.02"]
[Round "4.40"]
[White "Butuza, Stefan Aurelian"]
[Black "Ambru, Dan-Calin"]
[Result "0-1"]
[ECO "B22"]
[WhiteElo "1529"]
[BlackElo "1957"]
[Annotator "TA"]
[PlyCount "104"]
[EventDate "2022.12.02"]
[EventType "rapid"]
[EventCountry "ROU"]
[SourceTitle "playchess.com"]
[Source "ChessBase"]
[SourceQuality "1"]
[TimeControl "600+5"]

{[%evp 9,104,27,37,5,19,0,0,0,10,18,10,0,0,-44,-9,-16,-10,-14,-13,-3,-21,-147,-65,-65,-63,-88,-68,-82,-60,-91,-84,-191,-130,-456,-435,-474,-474,-443,-197,-214,-210,-198,-168,-173,-154,-170,-147,-200,-163,-170,-157,-154,-142,-158,-138,-183,-169,-204,-184,-211,-196,-208,-198,-340,-310,-352,-284,-545,-382,-526,-436,-739,-756,-795,-781,-1117,-1117,-1105,-1085,-1111,-1047,-1042,-994,-900,-898,-2535,-1279,-29976,-29970,-29980,-29981,-29981,-29982,-29986,-29983,-29987,-29988]} 1. e4 {[%emt 0:00:02]} c5 {[%emt 0:00:01]} 2. c3 {[%emt 0:00:00]} e5 {[%emt 0:00:01]} 3. Nf3 {[%emt 0:00:15]} Nc6 {[%emt 0:00:02]} 4. Bc4 {[%emt 0:00:09]} Qc7 {[%emt 0:00:01]} 5. d3 {[%emt 0:00:20]} Be7 {[%emt 0:00:06] [#]} 6. Be3 $146 {[%emt 0:00:18] B22: Sicilian: 2 c3.} ({Predecessor:} 6. Nbd2 Nf6 7. Nf1 Na5 8. Qc2 d5 9. exd5 O-O 10. Ne3 Nxc4 11. dxc4 e4 12. Nd2 Qe5 13. f3 {½-½ (54) Tzermiadianos,A (2425)-Rombaldoni,A (2448) Trieste 2010}) 6... Nf6 {[%emt 0:00:11]} 7. a3 {[%emt 0:00:02]} O-O {[%emt 0:00:13]} 8. O-O {[%emt 0:00:09] The position is equal.} Rd8 {[%emt 0:01:25]} 9. Ng5 {[%emt 0:01:08]} Rf8 {[%emt 0:01:35]} ({Don't do} 9... d5 10. exd5 Rxd5 11. Bxd5 Nxd5 12. Qf3 Bxg5 13. Bxg5 $16 (13. Qxd5 Be7 $14)) 10. Qb3 {[%emt 0:02:06][%cal Rc4f7]} Nd8 $1 {[%emt 0:00:11]} 11. f4 {[%emt 0:01:05]} Ng4 {[%emt 0:01:10]} (11... b5 $5 {[%cal Rb5c4]} 12. Bd5 (12. Bxb5 Rb8 $15) (12. Qxb5 Ng4 $15) 12... Rb8 $11) 12. Bc1 {[%emt 0:01:12] h3 is the strong threat.} exf4 {[%emt 0:00:02]} 13. Bxf4 {[%emt 0:00:06]} Bd6 {[%emt 0:00:01]} 14. Bxd6 {[%emt 0:02:22]} Qxd6 {[%emt 0:00:02][%csl Gg4][%cal Rd6h2] Really sharp!} 15. g3 {[%emt 0:00:02] [#]} (15. Nf3 $11 {was the only way to keep the balance.}) 15... Ne6 {[%emt 0:00:47]} (15... Qh6 $1 $17 {[%csl Gg4][%cal Rh6h2]} 16. h4 (16. Nxf7 $2 Qxh2#) 16... Ne6) 16. Nxe6 $15 {[%emt 0:00:42]} dxe6 {[%emt 0:00:28]} 17. Nd2 {[%emt 0:00:15]} Rb8 {[%emt 0:01:01][%cal Ob7b5] White must now prevent ...b5!} 18. a4 {[%emt 0:00:21]} Bd7 {[%emt 0:00:31]} 19. Rae1 {[%emt 0:00:22]} a6 {[%emt 0:00:13][%cal Ba7a6,Ba6b5][%mdl 32]} 20. Rf4 {[%emt 0:00:13] Against b5} (20. a5 $17) 20... Ne5 {[%emt 0:00:20]} (20... b5 $19 21. Rxg4 bxc4) 21. Qc2 $2 {[%emt 0:00:19][%mdl 8192] White does not recover from this.} (21. a5 $17) 21... b5 $19 {[%emt 0:00:05]} 22. axb5 {[%emt 0:00:03]} axb5 {[%emt 0:00:01]} 23. Ba2 {[%emt 0:00:09]} Qxd3 {[%emt 0:00:03]} (23... Nxd3 $142 24. Rff1 Nxe1 25. Rxe1 c4) 24. Bb1 {[%emt 0:00:11]} Qxc2 {[%emt 0:00:06]} 25. Bxc2 {[%emt 0:00:02]} Bc6 {[%emt 0:00:05]} 26. Nb3 {[%emt 0:00:14]} c4 {[%emt 0:00:20]} 27. Nd4 {[%emt 0:00:02]} Bd7 {[%emt 0:00:04]} 28. Ref1 {[%emt 0:00:08]} (28. Rff1 $17 {is a better defense.}) 28... Ra8 {[%emt 0:00:16]} 29. R4f2 {[%emt 0:00:07]} Ra2 {[%emt 0:00:30]} 30. Bb1 {[%emt 0:00:04]} Ra1 {[%emt 0:00:06]} 31. Kg2 {[%emt 0:00:05]} h5 {[%emt 0:00:31]} 32. h3 {[%emt 0:00:06]} Ra7 {[%emt 0:00:16][%cal Ob5b4]} 33. Bc2 {[%emt 0:00:04]} Rb8 {[%emt 0:00:14]} 34. Nf3 {[%emt 0:00:03]} Nxf3 {[%emt 0:00:07]} 35. Rxf3 {[%emt 0:00:14]} Bc6 {[%emt 0:00:01]} 36. Rf4 {[%emt 0:00:00]} (36. Re3 {was worth a try.}) 36... b4 {[%emt 0:00:07]} 37. Kg1 {[%emt 0:00:03]} b3 {[%emt 0:00:26]} 38. Bb1 {[%emt 0:00:03]} (38. Bd1 Ra2 39. R1f2) 38... Rd8 {[%emt 0:00:05] [#] aiming for ...e5.} 39. R4f2 {[%emt 0:00:06]} f6 {[%emt 0:00:11]} 40. Kh2 {[%emt 0:00:06]} (40. e5 $142 f5 41. Re1) 40... e5 {[%emt 0:00:01]} 41. g4 {[%emt 0:00:04]} hxg4 {[%emt 0:00:03]} 42. hxg4 {[%emt 0:00:13]} Rad7 {[%emt 0:00:14]} 43. Kg3 {[%emt 0:00:00]} Rd2 {[%emt 0:00:15]} 44. Kg2 {[%emt 0:00:04]} Rd1 {[%emt 0:00:06][%cal Od1b1] And now ...Rxb1! would win.} 45. Kg3 {[%emt 0:00:05]} R8d2 {[%emt 0:00:05]} 46. Rxd2 {[%emt 0:00:04]} Rxd2 {[%emt 0:00:03][%mdl 4096] Endgame KRB-KRB} 47. Rf2 {[%emt 0:00:01]} Rd1 {[%emt 0:00:06]} 48. g5 {[%emt 0:00:07]} Rg1+ {[%emt 0:00:13] Black mates.} 49. Kh2 {[%emt 0:00:03]} Rxb1 {[%emt 0:00:02]} 50. gxf6 {[%emt 0:00:01]} gxf6 {[%emt 0:00:03]} 51. Rxf6 {[%emt 0:00:02]} Bxe4 {[%emt 0:00:02]} 52. Re6 {[%emt 0:00:08]} Rxb2+ {[%emt 0:01:17] Weighted Error Value: White=0.65/Black=0.25 (precise)} 0-1

[Event "Romanian Rapid Open 2022"]
[Site "Sebes"]
[Date "2022.12.02"]
[Round "5.1"]
[White "Ardelean, George-Catalin"]
[Black "Dragomirescu, Robin-Alexandru"]
[Result "0-1"]
[ECO "C56"]
[WhiteElo "2473"]
[BlackElo "2337"]
[Annotator "TA"]
[PlyCount "128"]
[EventDate "2022.12.02"]
[EventType "rapid"]
[EventCountry "ROU"]
[SourceTitle "playchess.com"]
[Source "ChessBase"]
[SourceQuality "1"]
[TimeControl "600+5"]

{[%evp 24,127,17,30,31,30,25,22,100,29,82,74,76,69,74,73,64,76,67,69,74,73,97,40,53,6,4,0,2,0,0,0,0,0,0,2,2,7,14,7,38,37,31,16,35,9,15,17,38,16,18,0,7,0,61,64,99,83,112,108,157,148,191,161,207,77,80,20,198,0,93,64,116,56,83,97,285,38,47,0,0,0,8,8,56,4,16,10,15,0,0,-29992,-29993,-29993,-29994,-29994,-29995,-29995,-29993,-29996,-29997,-29997,-29998,-29998,-29999,-29999]} 1. e4 {[%emt 0:00:03]} Nc6 {[%emt 0:00:17]} 2. d4 {[%emt 0:00:14]} e5 {[%emt 0:00:17]} 3. Nf3 {[%emt 0:00:09]} exd4 {[%emt 0:00:05]} 4. Bc4 {[%emt 0:00:02]} Nf6 {[%emt 0:00:37]} 5. e5 {[%emt 0:00:09]} d5 {[%emt 0:00:07]} 6. Bb5 {[%emt 0:00:04]} Ne4 {[%emt 0:00:11]} 7. Nxd4 {[%emt 0:00:07]} Bd7 {[%emt 0:00:26]} 8. Bxc6 {[%emt 0:00:06]} bxc6 {[%emt 0:00:04]} 9. O-O {[%emt 0:00:04]} Bc5 {[%emt 0:00:26]} 10. f3 {[%emt 0:00:07]} Ng5 {[%emt 0:00:11]} 11. Be3 {[%emt 0:00:06]} O-O {[%emt 0:00:52]} 12. f4 {[%emt 0:00:14]} Ne4 {[%emt 0:00:29]} 13. Nd2 {[%emt 0:00:09]} f6 {[%emt 0:02:27] C56: Two Knights: 4 d4 exd4 5 0-0 Nxe4.} 14. Nxe4 {[%emt 0:02:46]} dxe4 {[%emt 0:00:03]} 15. Qe2 {[%emt 0:00:32] And now Qc4+ would win.} Qe7 {[%emt 0:01:30]} (15... Bb6 $11 {remains equal.}) 16. Nb3 {[%emt 0:02:07]} (16. Qc4+ $16 Kh8 17. Nf5 $1 Bxe3+ 18. Nxe3) 16... Bxe3+ {[%emt 0:00:48]} (16... Bb6 $1 $11 {keeps the balance.}) 17. Qxe3 $16 {[%emt 0:00:02]} fxe5 {[%emt 0:01:18]} 18. Qxe4 {[%emt 0:00:05]} Bf5 {[%emt 0:00:06]} 19. Qc4+ {[%emt 0:00:27]} Be6 {[%emt 0:00:11]} 20. Qxc6 {[%emt 0:00:23]} Bxb3 {[%emt 0:00:28]} 21. axb3 {[%emt 0:00:38]} exf4 {[%emt 0:00:01]} 22. Rae1 {[%emt 0:00:17] [#] Prevents Qe3+.} Qf7 $146 {[%emt 0:00:46]} ({Predecessor:} 22... Qf6 23. Qc4+ Kh8 24. Re4 g5 25. c3 Qb6+ 26. Kh1 Rae8 27. h3 Rxe4 28. Qxe4 Qf6 {½-½ (66) Vrencian,L (2334)-Petran,P (2306) Hungary 2018}) 23. Qc5 {[%emt 0:01:03]} (23. g3 $16) 23... Rad8 {[%emt 0:00:12]} 24. Re7 {[%emt 0:00:14]} (24. Qxa7 $14 Rd2 25. Rf2 Rxf2 26. Qxf2) 24... Qg6 $1 $11 {[%emt 0:00:04]} 25. Qc4+ {[%emt 0:00:21]} (25. Qxa7 $2 f3 26. Qf2 fxg2 $19) (25. Qxc7 Rc8 26. Qb7 Rxc2 27. Qd5+ Kh8 $11) (25. Re2 {simplifies} Qb6 26. Qxb6 axb6 27. h4) 25... Kh8 {[%emt 0:00:02]} 26. Re6 {[%emt 0:00:47]} (26. Qe4 {simplifies} Rd2 27. Qxg6 hxg6 28. Rxc7 Re8 29. Rc5) 26... Qg5 {[%emt 0:00:09]} 27. Re2 {[%emt 0:00:41]} f3 {[%emt 0:00:06]} 28. Ref2 {[%emt 0:00:01]} Qe3 {[%emt 0:00:06] Threatens to win with ...Rd2.} 29. Qc3 {[%emt 0:00:11] Against Rd2} Qb6 $132 {[%emt 0:00:04][%mdl 2048] Black is not holding back} 30. gxf3 {[%emt 0:00:05]} Rd6 {[%emt 0:00:02]} (30... h6 {with more complications.} 31. Kg2 Rf6 32. Qe1 Re6) 31. Kh1 {[%emt 0:00:03]} (31. Kg2 {looks sharper.} Rc6 32. Qd2 h6 33. Kh1) 31... Rdf6 {[%emt 0:00:07]} (31... Rd1 {seems wilder.} 32. Rg1 Rxg1+ 33. Kxg1 h6) 32. Rg2 {[%emt 0:00:05]} h6 {[%emt 0:00:05]} 33. Rg3 {[%emt 0:00:01]} (33. Rd1 {simplifies} Rg6 34. Rd4 Re8 35. Rxg6 Qxg6 36. Qd2) 33... R8f7 {[%emt 0:00:02]} 34. Kg2 {[%emt 0:00:02]} (34. Re1 {simplifies} Re6 35. b4 Rxe1+ 36. Qxe1 Qd6 37. c3) 34... Rc6 {[%emt 0:00:06]} 35. Qd2 {[%emt 0:00:09]} Qc5 {[%emt 0:00:05]} 36. Rf2 {[%emt 0:00:02]} (36. Qd8+ {is more complex.} Kh7 37. Qd3+ g6 38. Rf2) 36... Qf5 {[%emt 0:00:04]} 37. c3 {[%emt 0:00:07]} Rd6 {[%emt 0:00:01]} 38. Qe3 {[%emt 0:00:04]} Rd3 {[%emt 0:00:03] Inhibits b4.} (38... c5 $11) 39. Qxa7 $14 {[%emt 0:00:03]} Rd1 {[%emt 0:00:08]} 40. Re2 {[%emt 0:00:21]} Kh7 {[%emt 0:00:10]} 41. Qe3 {[%emt 0:00:04]} Qb5 {[%emt 0:00:07]} (41... c5 $142) 42. Qe4+ {[%emt 0:00:06]} Rf5 {[%emt 0:00:04]} 43. c4 {[%emt 0:00:04]} Qc5 {[%emt 0:00:02] [#]} (43... Qd7 $142 44. b4 Rd4) 44. Rf2 {[%emt 0:00:13]} (44. b4 $1 $18 {[%cal Rb4c5] has better winning chances.} Qf8 45. Rg4) 44... Rd4 $16 {[%emt 0:00:02]} 45. Qe8 {[%emt 0:00:02]} (45. Qe6 $16 {Qg6+ would kill now.} Kh8 46. b4) 45... Rd6 {[%emt 0:00:10] [#]} (45... Qd6 $11 {and Black stays safe.}) 46. Qe4 {[%emt 0:00:06]} (46. Qe7 $1 $18 {[%csl Gg3][%cal Re7g7]} Rg6 47. Re2) 46... Rd4 $1 {[%emt 0:00:02]} 47. Qc2 {[%emt 0:00:04][%cal Ob3b4]} (47. Qe6 {keeps more tension.} Rf6 48. Qe3 Qd6 49. Re2) 47... Qe5 {[%emt 0:00:06]} (47... g6 $14) 48. Re2 {[%emt 0:00:02]} (48. Rg4 $16 Rd7 49. Rd2 Rxd2+ 50. Qxd2) 48... Qf6 {[%emt 0:00:03]} 49. Rg4 {[%emt 0:00:05] Black must now prevent Rxd4.} c5 {[%emt 0:00:10]} (49... Rd7 $16) 50. Rg3 $2 {[%emt 0:00:05]} ({Better is} 50. Rxd4 $18 cxd4 51. Qe4) 50... h5 {[%emt 0:00:02]} 51. Rf2 {[%emt 0:00:09]} (51. Re3 $14 {is more appropriate.}) 51... Kh6 $11 {[%emt 0:00:05]} 52. Qc1+ {[%emt 0:00:14]} Rff4 {[%emt 0:00:07]} 53. Qe3 {[%emt 0:00:00]} g6 {[%emt 0:00:07]} (53... Kh7 $11 {deserves consideration.}) 54. Re2 {[%emt 0:00:00]} ({White should play} 54. Kh1 $14) 54... Qf5 {[%emt 0:00:05]} 55. Qe8 {[%emt 0:00:05][%cal Re8h8]} Qf6 {[%emt 0:00:05] Against Qh8+} 56. Re6 {[%emt 0:00:09]} Rd2+ {[%emt 0:00:01][%mdl 64] Discovered Attack, Deflection} 57. Kf1 $2 {[%emt 0:00:01][%mdl 8192]} (57. Kg1 $11 Qd4+ 58. Re3 (58. Kh1 {is a self mate.} Rxh2+ 59. Kxh2 Qf2+ 60. Kh3 Qf1+ 61. Rg2 Qh1+ 62. Rh2 Qxf3#)) 57... Rxf3+ {[%emt 0:00:02] Black mates.} ({But not} 57... Qxb2 58. Qxg6#) 58. Ke1 {[%emt 0:00:01]} Rf1+ {[%emt 0:00:11]} ({Don't do} 58... Rxb2 59. Rxg6+ Kh7 60. Qg8#) 59. Kxd2 {[%emt 0:00:01]} Qxb2+ {[%emt 0:00:03]} 60. Kd3 {[%emt 0:00:14]} Qb1+ {[%emt 0:00:08]} 61. Ke2 {[%emt 0:00:06]} Qd1+ {[%emt 0:00:05]} 62. Ke3 {[%emt 0:00:01]} Qd4+ {[%emt 0:00:04]} 63. Ke2 {[%emt 0:00:04]} Rf2+ {[%emt 0:00:01]} 64. Ke1 {[%emt 0:00:02]} Qd2# {[%emt 0:00:17] What a fight!   Weighted Error Value: White=0.38/Black=0.20 (precise)} 0-1